Cogmind - Beta 10.1 @@@ ROGUE MODE // 2020.09.22 @ 15:55:04 Player: Omewes Result: Destroyed by DAS Turret with DAS Cannon Performance ------------- Evolutions (1) 500 Regions Visited (5) 1000 Robots Destroyed (43) 215 Value Destroyed (1200) 1200 Prototype IDs (5) 100 Alien Tech Used (0) 0 Bonus (88) 88 TOTAL SCORE: 3103 Bonus ------- Follower Combat Kills 108 Friendly Fire -20 Cogmind --------- Core Integrity 0/400 Matter 279/300 Energy 97/100 System Corruption 3% Temperature Cool (20) Movement Core (800) Ox15 Location -9/Exiles Parts ------- > --- POWER (1) -------- (None) > --- PROPULSION (2) --- (None) > --- UTILITY (2) ------ High-capacity Storage Unit Sensor Drone Bay (20/20) > --- WEAPON (4) ------- (None) > --- INVENTORY (12) --- Improved Ion Engine Heat Sink High-capacity Storage Unit High-capacity Matter Pod (200) Improved Sensor Array Improved Targeting Computer Armor Integrity Analyzer Rocket Launcher Peak State ------------ > --- POWER ------------ Improved Ion Engine > --- PROPULSION ------- Light Treads Light Treads > --- UTILITY ---------- Improved Heat Sink High-capacity Storage Unit > --- WEAPON ----------- Improved EM Shotgun Improved Medium Laser Improved Medium Laser Beamcaster > --- INVENTORY -------- Improved Ion Engine Light Treads Light Treads Light Treads Large Storage Unit Large Matter Pod Improved Sensor Array Improved Targeting Computer Armor Integrity Analyzer Sensor Drone Bay Rocket Launcher Heavy Mace [Rating: 24] Favorites ----------- Power Improved Ion Engine Engine Improved Ion Engine Propulsion Light Treads Treads Light Treads Utility High-capacity Storage Unit Device Improved Heat Sink Storage High-capacity Storage Unit Protection Light Armor Plating Weapon Light Assault Rifle Energy Gun Improved Medium Laser Ballistic Gun Light Assault Rifle Launcher Rocket Launcher Impact Weapon Heavy Mace Build | -11 -10 -10 -9 -9 -9 ------- Run | Scr Mat Min Mat Min Exi Slots Evolved 2 | . . . 2 . . Power . | . . . . . . Propulsion . | . . . . . . Utility . | . . . . . . Weapon 2 | . . . 2 . . Parts Attached 50 | 6 4 6 15 15 4 Power 7 | 1 1 1 2 2 . Engine 7 | 1 1 1 2 2 . Core . | . . . . . . Reactor . | . . . . . . Propulsion 14 | 2 . . 4 6 2 Treads 14 | 2 . . 4 6 2 Leg . | . . . . . . Wheel . | . . . . . . Hover . | . . . . . . Flight . | . . . . . . Utility 14 | 1 3 3 3 2 2 Device 7 | . 1 1 3 1 1 Storage 5 | 1 2 1 . . 1 Processor . | . . . . . . Hackware . | . . . . . . Protection 2 | . . 1 . 1 . Artifact . | . . . . . . Weapon 15 | 2 . 2 6 5 . Energy Gun 6 | . . . 5 1 . Energy Cannon . | . . . . . . Ballistic Gun 7 | 2 . 2 1 2 . Ballistic Cannon . | . . . . . . Launcher 1 | . . . . 1 . Special Weapon . | . . . . . . Impact Weapon 1 | . . . . 1 . Slashing Weapon . | . . . . . . Piercing Weapon . | . . . . . . Special Melee Weapon . | . . . . . . Unidentified Prototypes 3 | . . 1 2 . . Parts Lost 25 | . . 1 2 13 9 Power 4 | . . . 1 2 1 Propulsion 8 | . . . . 4 4 Utility 2 | . . . . 1 1 Weapon 11 | . . 1 1 6 3 Highest Loss Streak 9 | . . 1 1 5 9 Average Slot Usage (%) 87 | . 90 100 92 80 85 Engine 11 | . 14 14 11 10 10 Treads 23 | . 28 28 22 21 21 Device 5 | . 4 4 10 6 . Storage 11 | . 14 14 11 11 11 Protection 4 | . . 9 . 3 10 Energy Gun 6 | . . . 18 7 . Ballistic Gun 17 | . 28 28 18 9 21 Launcher 1 | . . . . 2 . Impact Weapon 4 | . . . . 7 10 Naked Turns . | . . . . . . Heaviest Build 55 | 11 26 54 55 54 52 Greatest Support 40 | 40 40 40 40 40 40 Greatest Overweight (x) 15 | 3 . 1 1 1 15 Average Overweight (x) . | . . . 1 . 1 Largest Inventory Capacity 12 | 6 10 12 12 12 12 Average Capacity 11 | 5 7 11 12 12 12 Most Carried 12 | . 7 8 12 12 12 Average Carried 9 | . 4 7 11 10 10 Final Capacity 12 | 6 10 12 12 12 12 Final Carried 12 | . 7 8 12 11 8 Class Distribution -------------------- 42% | Mutant 37% | Scavenger-Mutant 12% | Scavenger-Gunner 6% | Scavenger-Skirmisher Dominant Class ---------------- Mutant | -10/Materials Mutant | -10/Mines Scavenger-Gunner | -9/Materials Scavenger-Mutant | -9/Mines Scavenger-Mutant | -9/Exiles Resources | -11 -10 -10 -9 -9 -9 ----------- Run | Scr Mat Min Mat Min Exi Matter Collected 1315 | 148 140 203 360 464 . Remotely . | . . . . . . Salvage Created 1707 | . 140 181 780 606 . Parts 87 | . 8 11 45 23 . Haulers Intercepted 3 | . 1 . 2 . . Recyclers Shooed 1 | . . . 1 . . Parts Field Recycled . | . . . . . . Retrieved Matter . | . . . . . . Parts Self-Destructed . | . . . . . . Prevented . | . . . . . . Kills | -11 -10 -10 -9 -9 -9 ------- Run | Scr Mat Min Mat Min Exi Combat Hostiles Destroyed 37 | . 5 4 12 16 . Melee 1 | . . . . 1 . Guns 31 | . 5 4 12 10 . AOE 1 | . . . . 1 . Classes Destroyed 9 | . 2 1 5 1 . Worker 1 | . . . 1 . . Builder 1 | . . . 1 . . Hauler 3 | . 1 . 2 . . Recycler 1 | . . . 1 . . Swarmer 8 | . 5 . . 3 . Grunt 23 | . . 4 9 10 . Brawler 3 | . . . 1 2 . Duelist 1 | . . . . 1 . Sentry 2 | . . . 2 . . Best Kill Streak 6 | . 3 2 6 3 . Combat Bots Only 4 | . 3 2 4 3 . Max Kills in Single Turn 2 | . 1 1 2 1 . Gunslinging . | . . . . . . Exploded 1 | . . . . 1 . Melee 1 | . . . . 1 . Uniques/NPCs Destroyed . | . . . . . . Combat | -11 -10 -10 -9 -9 -9 -------- Run | Scr Mat Min Mat Min Exi Damage Taken 3262 | . 130 541 549 1294 748 Core 563 | . 49 71 85 174 184 Absorbed by Shields . | . . . . . . Core Remaining (%) 76 | 100 . 52 . . . Volleys Fired 114 | . 12 21 40 40 1 Largest 4 | . 2 2 4 4 2 Hottest 232 | . 40 40 232 232 43 Shots Fired 290 | . 24 41 136 87 2 Gun 287 | . 24 41 136 84 2 Cannon . | . . . . . . Launcher 3 | . . . . 3 . Special . | . . . . . . Kinetic 179 | . 24 41 76 36 2 Thermal 94 | . . . 50 44 . Explosive 3 | . . . . 3 . Electromagnetic 14 | . . . 10 4 . Robot Hit Streak 24 | . 5 7 24 15 4 Robot Miss Streak 7 | . 2 2 7 3 . Penetration Max . | . . . . . . Secondary Targets 4 | . . 2 1 1 . Max Gunslinging Chain 1 | . . 1 1 1 . Shots Hit Robots 222 | . 15 30 96 79 2 Core Hits 85 | . 9 12 38 26 . Critical Hits 1 | . . . 1 . . Critical Kills 1 | . . . 1 . . Critical Parts Destroyed . | . . . . . . Melee Attacks 19 | . . . . 19 . Impact 19 | . . . . 19 . Slashing . | . . . . . . Piercing . | . . . . . . Sneak Attacks 1 | . . . . 1 . Combat Hostiles 1 | . . . . 1 . Follow-up Attacks . | . . . . . . Damage Inflicted 3096 | . 96 243 1304 1433 20 Guns 2477 | . 96 243 1304 814 20 Cannons . | . . . . . . Explosions 211 | . . . . 211 . Melee 408 | . . . . 408 . Ramming . | . . . . . . Kinetic 1299 | . 96 243 632 308 20 Thermal 1086 | . . . 486 600 . Explosive 71 | . . . . 71 . Electromagnetic 232 | . . . 186 46 . Impact 408 | . . . . 408 . Slashing . | . . . . . . Piercing . | . . . . . . Highest Corruption 3 | . . . . 3 3 Average Corruption 3 | . . . . 3 3 Corruption Purged . | . . . . . . Effects 18 | . . . . 9 9 Message Errors 6 | . . . . 4 2 Matter Fused 4 | . . . . 1 3 Heat Flow Errors 4 | . . . . 2 2 Energy Discharges 1 | . . . . . 1 Data Loss (minor) 2 | . . . . 1 1 Targeting Errors 1 | . . . . 1 . Overload Shots . | . . . . . . Overflow Damage 104 | . . . . 104 . Projectiles . | . . . . . . Explosions . | . . . . . . Melee 104 | . . . . 104 . Knockbacks 1 | . . . . 1 . Impact 1 | . . . . 1 . Kinetic . | . . . . . . Secondary . | . . . . . . Self-Inflicted Damage 50 | . . . . 50 . Shots 1 | . . . . 1 . Rammed . | . . . . . . Targets Rammed . | . . . . . . Kicked . | . . . . . . Crushed . | . . . . . . Highest Temperature 510 | . 2 72 399 510 234 Average Temperature 113 | . 1 28 117 151 103 Received Heat Transfer 904 | . . 306 264 294 40 Effects 1 | . . . . 1 . Damage (minor) 1 | . . . . 1 . Siege Activations . | . . . . . . Robots Corrupted . | . . . . . . Combat Hostiles . | . . . . . . Parts Fried . | . . . . . . Impact Corruptions 5 | . . . . 5 . Robots Melted 1 | . . . . 1 . Combat Hostiles 1 | . . . . 1 . Parts Melted 2 | . . . 1 1 . Heat Transferred 2127 | . . . 999 1128 . Parts Sabotaged . | . . . . . . Parts Stolen . | . . . . . . Parts Stripped . | . . . . . . Power Chain Reactions 1 | . . . . 1 . Missiles Intercepted . | . . . . . . Alert | -11 -10 -10 -9 -9 -9 ------- Run | Scr Mat Min Mat Min Exi Peak Influence 320 | . 132 108 320 167 . Initial 97 | . . 3 . 97 . Average 88 | . 65 92 151 71 . Maximum Alert Level 1 | . . . 1 . . Low Security (%) 95 | 100 100 100 75 100 . Level 1 4 | . . . 24 . . Level 2 . | . . . . . . Level 3 . | . . . . . . Level 4 . | . . . . . . Level 5 . | . . . . . . High Security . | . . . . . . Max Security . | . . . . . . Squads Dispatched 2 | . . . 2 . . Investigation . | . . . . . . Extermination . | . . . . . . Reinforcement 2 | . . . 2 . . Assault . | . . . . . . Garrison . | . . . . . . Intercept . | . . . . . . Construction Impeded . | . . . . . . Haulers Reinforced . | . . . . . . Stealth | -11 -10 -10 -9 -9 -9 --------- Run | Scr Mat Min Mat Min Exi Distress Signals 4 | . . . 4 . . Communications Jammed . | . . . . . . Distress Signals . | . . . . . . Times Spotted 75 | . 7 7 25 18 18 Peak Tracking Total 13 | . 3 3 4 3 13 Tactical Retreats 5 | . . . 1 2 2 Traps | -11 -10 -10 -9 -9 -9 ------- Run | Scr Mat Min Mat Min Exi Traps Triggered . | . . . . . . Indirectly . | . . . . . . Trap Hack Attempts . | . . . . . . Triggered . | . . . . . . Disarmed . | . . . . . . Reprogrammed 5 | . . . 5 . . Reused . | . . . . . . Traps Extracted . | . . . . . . Installed . | . . . . . . Triggered . | . . . . . . Machines | -11 -10 -10 -9 -9 -9 ---------- Run | Scr Mat Min Mat Min Exi Machines Disabled 2 | . . . 2 . . Max in Single Turn 1 | . . . 1 . . Machines Sabotaged . | . . . . . . Garrisons Compromised . | . . . . . . Overloaded Fab Kills . | . . . . . . Fab Network Shutdowns . | . . . . . . Hacking | -11 -10 -10 -9 -9 -9 --------- Run | Scr Mat Min Mat Min Exi Machines Accessed 7 | . 3 1 2 1 . Terminals 6 | . 3 . 2 1 . Fabricators . | . . . . . . Repair Stations . | . . . . . . Recycling Units . | . . . . . . Scanalyzers . | . . . . . . Garrison Access . | . . . . . . Total Hacks 16 | . 7 1 7 1 . Successful 11 | . 5 1 4 1 . Failed 5 | . 2 . 3 . . Catastrophic 1 | . 1 . . . . Database Lockouts . | . . . . . . Manual 3 | . 2 . 1 . . Terminals 15 | . 7 . 7 1 . Fabricators . | . . . . . . Repair Stations . | . . . . . . Recycling Units . | . . . . . . Scanalyzers . | . . . . . . Garrison Access . | . . . . . . Terminal Hacks 9 | . 3 1 4 1 . Prototype ID Bank 1 | . . . 1 . . Open Door 1 | . . 1 . . . Branch Access Points 1 | . . . 1 . . Reprogram Traps 1 | . . . 1 . . Hauler Manifests 2 | . 1 . 1 . . Registered Components 1 | . 1 . . . . Zone Layout 2 | . 1 . . 1 . Fabricator Hacks . | . . . . . . Repair Station Hacks . | . . . . . . Recycling Unit Hacks . | . . . . . . Scanalyzer . | . . . . . . Garrison Access Hacks . | . . . . . . Unauthorized Hacks 2 | . 2 . . . . Terminals 2 | . 2 . . . . Track 1 | . 1 . . . . Operators 1 | . 1 . . . . Fabricators . | . . . . . . Repair Stations . | . . . . . . Recycling Units . | . . . . . . Scanalyzers . | . . . . . . Garrison Access . | . . . . . . Data Cores Recovered . | . . . . . . Used . | . . . . . . Hacking Detections 5 | . 3 . 2 . . Full Trace Events . | . . . . . . Feedback Events . | . . . . . . Feedback Blocked . | . . . . . . Robot Schematics Acquired . | . . . . . . Robots Built . | . . . . . . Matter . | . . . . . . Time . | . . . . . . Total Robot Build Rating . | . . . . . . Part Schematics Acquired . | . . . . . . Parts Built . | . . . . . . Matter . | . . . . . . Time . | . . . . . . Total Part Build Rating . | . . . . . . Parts Repaired . | . . . . . . Time . | . . . . . . Parts Recycled . | . . . . . . Recycled Matter . | . . . . . . Retrieved Matter . | . . . . . . Retrieved Components . | . . . . . . Parts Scanalyzed . | . . . . . . Part Schematics Acquired . | . . . . . . Parts Damaged . | . . . . . . Bothacking | -11 -10 -10 -9 -9 -9 ------------ Run | Scr Mat Min Mat Min Exi Used RIF Installer . | . . . . . . Robots Hacked . | . . . . . . Non-combat . | . . . . . . Combat . | . . . . . . Robot Hacks Applied . | . . . . . . Relay Couplers Released . | . . . . . . Robots Rewired . | . . . . . . Allies Hacked . | . . . . . . Hacks Repelled . | . . . . . . Allies | -11 -10 -10 -9 -9 -9 -------- Run | Scr Mat Min Mat Min Exi Total Allies 2 | . . 2 . . . Largest Group 2 | . . 2 2 . . Highest-Rated Group 51 | . . 51 51 . . Highest-Rated Ally 31 | . . 31 31 . . Total Orders 2 | . . 1 1 . . EXPLORE 1 | . . 1 . . . RETURN 1 | . . . 1 . . Ally Attacks 15 | . . 1 14 . . Total Damage 170 | . . 21 149 . . Kills 4 | . . . 4 . . Allies Corrupted . | . . . . . . Allies Melted . | . . . . . . Intel | -11 -10 -10 -9 -9 -9 ------- Run | Scr Mat Min Mat Min Exi Robot Analysis Total . | . . . . . . Derelict Logs Recovered 1 | . . 1 . . . Drone Launches 24 | . . 20 2 . 2 Drone Recoveries 24 | . . 18 4 . 2 Exploration | -11 -10 -10 -9 -9 -9 ------------- Run | Scr Mat Min Mat Min Exi Turns Passed 3721 | 59 576 403 665 1543 475 Spaces Moved 1807 | 43 324 173 263 747 257 Core 24 | 23 . . . . 1 Treads 1783 | 20 324 173 263 747 256 Legs . | . . . . . . Wheels . | . . . . . . Hover . | . . . . . . Flight . | . . . . . . Fastest Speed 50 | 50 160 160 180 160 180 Average Speed 174 | 119 160 172 180 179 182 Slowest Speed 800 | 200 160 180 180 180 800 Overloaded Moves . | . . . . . . Propulsion Burnouts . | . . . . . . Robots Hopped . | . . . . . . Cave-ins Triggered . | . . . . . . Exploration Rate (%) 58 | 4 53 98 31 99 63 Regions Visited 5 Branch Regions 3 Pre-discovered Areas . | . . . . . . Known Exits Taken 2 | . . 1 1 . . Unknown Exits Taken 3 | 1 1 . . 1 . Scrap Searched 3 | . . 1 . 2 . Spaces Dug . | . . . . . . Terrain Destroyed 34 | . . . . 34 . Melee . | . . . . . . Projectile 1 | . . . . 1 . AOE 33 | . . . . 33 . Terrain Rammed . | . . . . . . Walls Destroyed . | . . . . . . Machines Disabled . | . . . . . . Actions | -11 -10 -10 -9 -9 -9 --------- Run | Scr Mat Min Mat Min Exi Total 2128 | 48 363 244 373 835 265 Wait 98 | . 13 41 39 5 . Move 1802 | 42 323 172 262 746 257 Hop . | . . . . . . Pick Up 22 | . 8 1 6 6 1 Fast Attach 19 | 6 . 1 6 6 . Attach 16 | . 1 1 4 7 3 Detach 4 | . . 1 2 1 . Swap 15 | . 3 4 5 2 1 Drop 19 | . 3 2 9 3 2 Fire 114 | . 12 21 40 40 1 Melee 19 | . . . . 19 . Ram . | . . . . . . Kick . | . . . . . . Crush . | . . . . . . Escape Stasis . | . . . . . . Rewire . | . . . . . . Trap . | . . . . . . Miscellaneous . | . . . . . . Route ------- -11/Scrapyard -10/Materials (discovered 4 exits: *Mat x2 / *Min x2) -10/Mines (discovered 2 exits: *Mat x2) -9/Materials (discovered 2 exits: *Min x2) -9/Mines (discovered 3 exits: [*Mat x2] / [*Exi]) -9/Exiles History --------- Turn | Location | Event 2 | -11/Scrapyard | Met Revision 17 35 | -11/Scrapyard | Discovered new exit (range 15) 60 | -11/Scrapyard | Entered Materials 256 | -10/Materials | Discovered new exit (range 5) 308 | -10/Materials | Build established: Mutant 333 | -10/Materials | Discovered new exit (range 15) 336 | -10/Materials | Discovered new exit (range 20) 599 | -10/Materials | Discovered new exit (range 12) 636 | -10/Materials | Entered Mines 755 | -10/Mines | A weapon hastily lodged in a ceiling crevice suddenly fell to the ground 906 | -10/Mines | Found the Drone Emporium 918 | -10/Mines | Found Prototype Device 919 | -10/Mines | Identified Sensor Drone Bay 968 | -10/Mines | Discovered new exit (range 12) 971 | -10/Mines | Identified exit to Materials 986 | -10/Mines | Discovered exit to Materials (range 42) 1039 | -10/Mines | Entered Materials 1039 | -9/Materials | Accompanied by 4 allies 1039 | -9/Materials | Evolved 2 slots: Weapon x2 1044 | -9/Materials | Led the pair of lost Derelicts to an unsafe place 1589 | -9/Materials | Identified exit to Mines 1652 | -9/Materials | Build established: Scavenger-Gunner 1704 | -9/Materials | Entered Mines 1772 | -9/Mines | Assembled infested the area 1945 | -9/Mines | Deemed a non-threat by the Exiles lab entrance 1945 | -9/Mines | Discovered new exit (range 5) 2122 | -9/Mines | Build established: Scavenger-Mutant 2200 | -9/Mines | Lost 5 parts (2n3w) 2261 | -9/Mines | Discovered new exit (range 7) 2459 | -9/Mines | Build established: Mutant 2529 | -9/Mines | Core integrity fell below 50% 2603 | -9/Mines | Lost 3 parts (2n1u) 2657 | -9/Mines | Received a Rocket Launcher from a helpful Derelict 2724 | -9/Mines | Discovered new exit (range 3) 2983 | -9/Mines | Build established: Scavenger-Mutant 3247 | -9/Mines | Entered Exiles 3291 | -9/Exiles | Met 8R-AWN 3321 | -9/Exiles | Met EX-HEX 3386 | -9/Exiles | Met EX-BIN 3494 | -9/Exiles | Met EX-DEC 3697 | -9/Exiles | Attacked by the Exiles 3708 | -9/Exiles | Core integrity fell below 20% 3722 | -9/Exiles | Destroyed by DAS Turret with DAS Cannon Last Messages --------------- 03584_ System corrupted: Component data lost. 03600_ System corrupted: Matter fused (-7). 03615_ System corrupted: Heat flow error (+197). 03651_ System corrupted: Matter fused (-7). 03671_ Dropped Hcp. Storage Unit. 03673_ Acquired Hcp. Storage Unit. 03697_ EXILES: Hostile robot within lab perimeter. Defensive protocols time, folks! 03699_ Hvy. Mace destroyed. 03699_ Lgt. Armor Plating destroyed. 03710_ EX-BIN: "I just want to science!" 03710_ Lgt. Treads destroyed. 03710_ Autogun destroyed. 03712_ Lgt. Assault Rifle destroyed. 03712_ Lgt. Treads destroyed. 03713_ Rnf. Ion Engine destroyed. 03714_ Lgt. Treads destroyed. 03716_ Knocked back. 03719_ Sensor Drone released from Sensor Drone Bay. 03720_ Sensor Drone retrieved by Sensor Drone Bay. Map ----- +----------------------------------------------------+ | ??#######?????????????????????????#" """ | | ??#!!! "#?????????????????????????#" "" | | ??# "#?????????????????????????#" "" | | ??# "#?????????????????????????#" "" | | ?## ""#?????????????????????????#" "" | | ##" ""#?????????????????????????#" "" | | ##" ""#?????????????????????????## "" | | #"" #??????????????? ???????????# "" | | #??????????????" ??????????#" "X" "" | | ##?????????????" ??????????#" """ | | "#????????????? ""?????????#" """""""" | | ###???????????" "?????????##" #######?? | | ##??????????# #????????##"" #???????? | | ###"" ######???### ###?######"" #???????? | | #?##" """#####X# #"###""""""" ##??????? | | #??#" """""" " "" ##????## | | ???#"# "" """ " #####"" | | ???#### " " " | | ??????### | | ????????### | | ??????????## | | ???????????## | | ????????????##" | | ?????????????#""" """""" | | ????????????##" ######""" | | ????????????#"" @ ""##????#####""" | | ????????????#""" aa """##?????????##""" | | ???????????#""" """##???????????#"""" | | ???????????#""" aa ""#???????????##"" | | ???????????#"" aaa########???###"""" | | ???????????#""" ##aaa####""" | | ???????????#"" """" | | ???????????##"" t z | | ????????????#"""" | | ?????????????# | | ?????????????#" " "" | | ?????????????#"""" ""## ##""" " " | | ?????????????#"" ""#### ######""" " | | ??????????????" """"##??# #????###""" | | ??????????????""" """#??## ####???#### | | ??????????????? ""##??#! " #??????? | | ???????????????"" """##???#" !!#??????? | | ????????????????""" ##????#" "#??????? | | ??????????????????""" #??????#!!""!"#??????? | | ??????????????????? c ???????########??????? | | ???????????????????#### #?????????????????????? | | ??????????????????????## ??????????????????????? | | ???????????????????????# c ??????????????????????? | | ?????????????????????????????????????????????????? | | ?????????????????????????????????????????????????? | +----------------------------------------------------+ Best States ------------- Heat Dissipation 42 Energy Generation 12 Energy Capacity 265 Matter Stores 300 Matter Capacity 300 Sight Range 16 Terrain Scan Density 10 Armor Coverage 150 Weapon Shielding 33 Evasion (%) 50 Recoil Reduction 2 Item Schematics ----------------- None Robot Schematics ------------------ None Fabricated ------------ Nothing Alien Tech Used ----------------- None Achievements -------------- None Challenges ------------ None Game ------ Seed SlugInsulatedSuperbattery Manual? 0 Play Time 00:26:52 Cumulative 223.5 hours Start 2020.09.22 @ 15:12:49 End 2020.09.22 @ 15:55:04 Sessions 1 Manual Loads 0 Difficulty Rogue Special Mode None Game No. 173 Rogue 173 Adventurer 0 Explorer 0 Win Type - Total 10 Types 5/0/1/1/0/2/1/0/0 Lore% 74 Gallery% 80 Achievement% 73 Wizard Run 0 Options --------- ASCII 0 Keyboard 1 Movement Numpad Keybinds 0 Fullscreen 1 Font 12/Terminus Map View 83x54 Tactical HUD 1 Map Filters NONE Filters LOW_CONTRAST(13,24,33) Steam 1 RUN: 1f3d61b1-bd67-4082-856e-1ab7aaa15d31